[Event "Polish University-ch Open 2024"]
[Site "Lublin"]
[Date "2024.02.23"]
[Round "4.6"]
[White "Zerebiec, Maurycy"]
[Black "Mis, Mieszko"]
[Result "1/2-1/2"]
[ECO "A36"]
[WhiteElo "1996"]
[BlackElo "2325"]
[Annotator "TA"]
[PlyCount "85"]
[EventDate "2024.02.22"]
[EventType "swiss"]
[EventCountry "POL"]
[SourceTitle "playchess.com"]
[Source "ChessBase"]
[SourceQuality "1"]
[TimeControl "600+3"]

{[%evp 18,85,0,0,0,0,0,0,0,0,0,-14,-9,-11,-13,-7,-9,-13,-23,-25,0,0,0,0,31,29,23,11,22,14,87,60,85,58,68,85,137,7,0,0,0,0,86,0,8,-124,-97,-120,-145,-155,-95,-139,-152,-137,-113,-150,0,0,0,-124,0,0,0,0,0,0,0,0,0,0]} 1. c4 {[%emt 0:00:01]} Nf6 {[%emt 0:00:06]} 2. Nc3 {[%emt 0:00:01]} c5 {[%emt 0:00:04]} 3. e4 {[%emt 0:00:01]} Nc6 {[%emt 0:00:04]} 4. g3 {[%emt 0:00:02]} g6 {[%emt 0:00:12]} 5. Bg2 {[%emt 0:00:01]} Bg7 {[%emt 0:00:04]} 6. Nge2 {[%emt 0:00:01]} O-O {[%emt 0:00:02]} 7. d3 {[%emt 0:00:01]} d6 {[%emt 0:00:04]} 8. O-O {[%emt 0:00:02]} Rb8 {[%emt 0:00:02]} 9. h3 {[%emt 0:00:04]} a6 {[%emt 0:00:06]} 10. a4 {[%emt 0:00:01]} Nd7 {[%emt 0:00:07]} 11. Be3 {[%emt 0:00:02]} Nd4 {[%emt 0:00:03]} 12. Rb1 {[%emt 0:00:01]} b6 {[%emt 0:00:17]} 13. b4 {[%emt 0:00:03]} Bb7 {[%emt 0:00:08]} 14. f4 {[%emt 0:00:02]} e6 {[%emt 0:00:13]} 15. Qd2 {[%emt 0:00:06]} Qe7 {[%emt 0:00:08]} 16. Kh2 {[%emt 0:00:02]} Rfe8 {[%emt 0:00:11]} 17. a5 {[%emt 0:01:08]} bxa5 {[%emt 0:00:31] [#] Zielt auf ...Nxe2 ab.} (17... Nxe2 {vereinfacht} 18. Nxe2 bxa5 19. bxa5 Bc6) 18. bxc5 {[%emt 0:00:01]} dxc5 {[%emt 0:00:08]} 19. e5 {[%emt 0:00:07]} Bxg2 {[%emt 0:00:06]} 20. Kxg2 {[%emt 0:00:05]} Rb4 {[%emt 0:00:26]} 21. Bxd4 {[%emt 0:00:19]} cxd4 {[%emt 0:00:05]} 22. Nxd4 {[%emt 0:00:02] Und Nc6 würde nun gewinnen.} Nc5 {[%emt 0:00:07] ...Rd8 wäre nun fies.} 23. Nc2 {[%emt 0:00:32]} (23. Nc6 $2 Qb7 24. d4 Qxc6+ $19) 23... Qb7+ {[%emt 0:00:28]} (23... Rd8 $11 24. Nxb4 axb4) 24. Kh2 $16 {[%emt 0:00:26]} Rxb1 {[%emt 0:00:07]} 25. Rxb1 {[%emt 0:00:08]} Qf3 {[%emt 0:00:08]} 26. d4 {[%emt 0:00:45]} Rd8 {[%emt 0:00:10] [#]} ({Vorzuziehen ist} 26... Ne4 27. Nxe4 Qxe4) 27. d5 {[%emt 0:00:17]} (27. Ne1 $1 $16 {[%cal Re1f3]} Qa8 28. d5) 27... Ne4 $1 $11 {[%emt 0:00:17]} 28. Nxe4 {[%emt 0:00:49]} Qxe4 {[%emt 0:00:02]} 29. d6 {[%emt 0:00:08]} Qxc4 {[%emt 0:00:09]} (29... f6 $1 $11) 30. Rb7 {[%emt 0:00:25] Weiß steht aktiver.} (30. Ne1 $16) 30... g5 $1 {[%emt 0:00:33]} 31. Ne3 {[%emt 0:00:16]} (31. Qxa5 Qxc2+ 32. Kg1 Qd1+ 33. Kf2 Rc8 $19) (31. Nd4 $11 {bleibt in der Remisbreite.}) 31... Qe4 $17 {[%emt 0:00:08]} 32. Qxa5 {[%emt 0:01:59]} Rf8 {[%emt 0:00:18]} 33. d7 {[%emt 0:01:12]} gxf4 {[%emt 0:01:36]} (33... Qxb7 34. d8=Q Rxd8 35. Qxd8+ Bf8 36. Qxg5+ Bg7 37. Qd8+ Bf8 38. Ng2 $11) 34. d8=Q {[%emt 0:00:02]} fxg3+ {[%emt 0:00:02]} (34... Qxb7 $6 35. Ng4 h5 (35... fxg3+ 36. Kxg3 Bxe5+ 37. Qxe5 $14) 36. gxf4 (36. Nf6+ Bxf6 37. Qxf6 Qb2+ 38. Kh1 Qb1+ 39. Kh2 Qc2+ 40. Kg1 Qd1+ 41. Kf2 Qd4+ 42. Ke2 Qe4+ 43. Kd2 Qg2+ 44. Kd1 Qxg3 $11) 36... Rxd8 37. Qxd8+ Kh7 38. Qd3+ Kh8 39. Qd8+ Kh7 40. Qd3+ Kh8 41. Qd8+ Kh7 $11) 35. Kxg3 {[%emt 0:00:02] Und jetzt Qdb6 wäre schön.} Qxe3+ {[%emt 0:00:09]} (35... Qxb7 $2 36. Qg5 $18) 36. Kg2 {[%emt 0:00:09]} Qe2+ {[%emt 0:00:19]} (36... Bxe5 37. Qdd2 (37. Qh4 Kh8 $11) 37... Qe4+ 38. Kf2 Bd4+ 39. Kf1 Qh1+ (39... Qf3+ 40. Ke1 $11) 40. Ke2 Qe4+ 41. Kd1 Qf3+ 42. Kc2 Qxb7 43. Qxd4 Rc8+ 44. Kd3 Qf3+ 45. Qe3 Qf1+ 46. Qe2 Qxh3+ 47. Kd2 Qh6+ 48. Kd3 $11) 37. Kg1 {[%emt 0:00:06]} Qe3+ {[%emt 0:00:29]} 38. Kg2 $1 {[%emt 0:00:12]} Rxd8 {[%emt 0:01:07]} ({Natürlich nicht} 38... Bxe5 $6 39. Qdd2 (39. Qh4 Kh8 $11) 39... Qe4+ 40. Kf2 Bd4+ 41. Kg3 $11) (38... Qe4+ $17 39. Kf2 Qf5+ (39... Qxb7 40. Qd3 $15) 40. Kg1 Qg6+ 41. Kf1 Qf5+ 42. Kg1 Qg6+ 43. Kf2 Qf5+ 44. Kg1) 39. Qxd8+ $11 {[%emt 0:00:03] Die Stellung ist ausgeglichen.} Bf8 {[%emt 0:00:00]} 40. Rb8 {[%emt 0:00:32][%csl Gb8][%cal Rd8f8]} Qe2+ {[%emt 0:00:20]} 41. Kg1 {[%emt 0:00:05][%csl Gb8][%cal Rd8f8] Tanz auf der Rasierklinge.} Qe1+ {[%emt 0:00:21]} 42. Kg2 {[%emt 0:00:02][%csl Gb8][%cal Rd8f8]} Qe2+ {[%emt 0:00:19]} 43. Kg1 {[%emt 0:00:02] Gewichteter Fehlerwert: Weiß=0.18 (sehr präzise) /Schwarz=0.18 (sehr präzise) .  Fehler:       	Weiß=3     	Schwarz=4     Ungenau:       	Weiß=1     	Schwarz=1     OK:         	Weiß=14    	Schwarz=9     Bester:       	Weiß=5     	Schwarz=3     Stark:        	Weiß=1     	Schwarz=2} 1/2-1/2

[Event "Polish University-ch Open 2024"]
[Site "Lublin"]
[Date "2024.02.23"]
[Round "4.7"]
[White "Kowalski, Igor"]
[Black "Klepek, Witold"]
[Result "1-0"]
[ECO "D87"]
[WhiteElo "2372"]
[BlackElo "2262"]
[Annotator "TA"]
[PlyCount "79"]
[EventDate "2024.02.22"]
[EventType "swiss"]
[EventCountry "POL"]
[SourceTitle "playchess.com"]
[Source "ChessBase"]
[SourceQuality "1"]
[TimeControl "600+3"]

{[%evp 19,79,16,49,8,0,0,24,26,34,37,28,28,35,44,69,35,31,26,46,47,43,53,35,0,15,0,19,-16,8,8,59,39,53,47,36,57,48,54,360,369,369,366,339,31,27,27,29,36,32,35,29967,338,296,250,265,256,247,241,324,323,319,313]} 1. d4 {[%emt 0:00:01]} Nf6 {[%emt 0:00:03]} 2. c4 {[%emt 0:00:01]} g6 {[%emt 0:00:01]} 3. Nc3 {[%emt 0:00:02]} d5 {[%emt 0:00:01]} 4. cxd5 {[%emt 0:00:01]} Nxd5 {[%emt 0:00:01]} 5. e4 {[%emt 0:00:01]} Nxc3 {[%emt 0:00:01]} 6. bxc3 {[%emt 0:00:01]} Bg7 {[%emt 0:00:01]} 7. Bc4 {[%emt 0:00:01]} c5 {[%emt 0:00:03]} 8. Ne2 {[%emt 0:00:02]} Nc6 {[%emt 0:00:02]} 9. Be3 {[%emt 0:00:02]} O-O {[%emt 0:00:10]} 10. O-O {[%emt 0:00:02]} b6 {[%emt 0:00:06]} 11. Rb1 {[%emt 0:00:27]} cxd4 {[%emt 0:01:29]} 12. cxd4 {[%emt 0:00:02]} Bb7 {[%emt 0:00:02]} 13. d5 {[%emt 0:00:37] White has an edge.} Na5 {[%emt 0:00:43]} 14. Bb5 {[%emt 0:00:27]} e6 {[%emt 0:00:43]} 15. Nf4 {[%emt 0:00:34]} exd5 {[%emt 0:00:11]} 16. Nxd5 {[%emt 0:00:08]} Rc8 {[%emt 0:00:25]} 17. Qd3 {[%emt 0:01:23] White is more active.} (17. Qa4 $5) 17... f5 {[%emt 0:02:18] And now ...fxe4 would win.} 18. f3 {[%emt 0:00:06]} fxe4 {[%emt 0:00:13]} 19. fxe4 {[%emt 0:00:02]} Qd6 {[%emt 0:00:11]} 20. Bg5 {[%emt 0:00:56]} Bxd5 {[%emt 0:00:22]} 21. exd5 {[%emt 0:00:55]} (21. Qxd5+ {simplifies} Qxd5 22. exd5 Rxf1+ 23. Rxf1 Bf8 24. g3) 21... Qe5 {[%emt 0:01:22]} 22. Bd2 {[%emt 0:00:49] A strong pair of Bishops.} Nb7 {[%emt 0:00:03]} 23. Rbe1 {[%emt 0:00:53]} Qd4+ {[%emt 0:00:30]} 24. Kh1 {[%emt 0:00:33]} (24. Qxd4 {simplifies} Bxd4+ 25. Kh1 Rxf1+ 26. Rxf1 Rc2 27. Bh6) 24... Nd6 {[%emt 0:00:30]} (24... Rxf1+ $11 25. Rxf1 Qxd3 26. Bxd3 Nd6) 25. Qxd4 $1 $14 {[%emt 0:01:46]} Bxd4 {[%emt 0:00:01]} 26. Bd7 {[%emt 0:00:06] Strongly threatening Be6+.} Rxf1+ {[%emt 0:00:37]} 27. Rxf1 {[%emt 0:00:01]} Rc2 {[%emt 0:00:55]} 28. Bh6 {[%emt 0:00:04]} Nf5 $2 {[%emt 0:00:08][%mdl 8192]} (28... Bg7 $1 $14 29. Be6+ Kh8) 29. Be6+ $18 {[%emt 0:00:12]} (29. Bxf5 gxf5 30. d6 (30. Rxf5 Bc5 $11) 30... Kf7 $18) 29... Kh8 {[%emt 0:00:01]} 30. Bxf5 {[%emt 0:00:03]} gxf5 {[%emt 0:00:01][%mdl 4096] Endgame. [#] KRB-KRB} 31. Re1 $2 {[%emt 0:00:49]} (31. Rxf5 Bg7 32. Bg5 Rxa2 $16) (31. d6 $1 $18 {[%cal Rd6d7] d7 would kill now.} Bf6 (31... Rxa2 $2 32. d7 $18) 32. Rxf5) 31... Kg8 $1 $14 {[%emt 0:00:10]} 32. d6 {[%emt 0:00:12]} Bf6 $1 {[%emt 0:00:08]} 33. d7 {[%emt 0:00:08] Hoping for Re8+.} Kf7 {[%cal Of7g6]} 34. g3 {[%emt 0:00:12]} Kg6 $2 {[%emt 0:00:01][%mdl 8192] [#] Repels h4} (34... Rc7 $14) 35. Bf4 $2 (35. Re6 {mates} Kf7 36. Rxf6+ Ke7 37. Rd6 (37. Rxf5 Kxd7 38. Rf7+ Ke6 $18) (37. Rf7+ Kxf7 38. d8=Q Rc5 $18) 37... Kxd6 38. d8=Q+ (38. d8=R+ Ke5 $18) 38... Ke6 39. Qg8+ Ke5 40. Bg7+ (40. Qxh7 Rc4 $18) 40... Kd6 41. Qd8+ (41. Qxh7 Rc1+ 42. Kg2 Rc2+ 43. Kf3 b5 $18) 41... Ke6 42. Qf6+ Kd7 43. Qxf5+ Ke7 44. Qxc2) 35... Kf7 $18 {[%emt 0:00:02]} 36. Re8 {[%emt 0:00:03] Wards off Rc4} Rxa2 {[%emt 0:00:03] aiming for ...Ra1+.} 37. d8=Q {[%emt 0:00:02]} (37. d8=B Kxe8 38. Bxf6 Kd7 $17) 37... Bxd8 {[%emt 0:00:01]} 38. Rxd8 {[%emt 0:00:01]} a5 {[%emt 0:00:04]} 39. Rd7+ {[%emt 0:00:01]} Kg6 {[%emt 0:00:01]} 40. Rd6+ {[%emt 0:00:00] Weighted Error Value: White=0.35/Black=0.43.  Loses game:     	---       	Black=2      Missed win:     	White=1     	---        Mistake:       	White=1     	Black=1      Inaccurate:     	White=3     	Black=1      OK:         	White=6     	Black=8      Best:        	White=4     	---        Strong:       	White=1     	Black=2} 1-0

[Event "Polish University-ch Open 2024"]
[Site "Lublin"]
[Date "2024.02.23"]
[Round "4.8"]
[White "Dalkowski, Rafal"]
[Black "Szustakowski, Antoni"]
[Result "1-0"]
[ECO "A13"]
[WhiteElo "2093"]
[BlackElo "2354"]
[Annotator "RC"]
[PlyCount "123"]
[EventDate "2024.02.22"]
[EventType "swiss"]
[EventCountry "POL"]
[SourceTitle "playchess.com"]
[Source "ChessBase"]
[SourceQuality "1"]
[TimeControl "600+3"]

1. Nf3 {[%emt 0:00:03]} d5 {[%emt 0:00:02]} 2. c4 {[%emt 0:00:02]} e6 {[%emt 0:00:06]} 3. e3 {[%emt 0:00:05]} a6 {[%emt 0:00:08]} 4. b3 {[%emt 0:00:17]} Nf6 {[%emt 0:00:16]} 5. Bb2 {[%emt 0:00:06]} c5 {[%emt 0:00:10]} 6. Be2 {[%emt 0:00:19]} Nc6 {[%emt 0:00:03]} 7. cxd5 {[%emt 0:00:02]} exd5 {[%emt 0:00:02]} 8. d4 {[%emt 0:00:17]} cxd4 {[%emt 0:02:06]} 9. exd4 {[%emt 0:00:02]} Bd6 {[%emt 0:00:32]} 10. O-O {[%emt 0:00:04]} O-O {[%emt 0:00:02]} 11. Ne5 {[%emt 0:00:03]} Bf5 {[%emt 0:00:23]} 12. Nd2 {[%emt 0:00:09]} Rc8 {[%emt 0:00:30]} 13. f4 {[%emt 0:00:07]} Qb6 {[%emt 0:01:17]} 14. Ndf3 {[%emt 0:00:11]} Be4 {[%emt 0:00:01]} 15. Kh1 {[%emt 0:00:11]} Nb4 {[%emt 0:00:15]} 16. Ng5 {[%emt 0:00:17]} Nc2 {[%emt 0:00:24]} 17. Bg4 {[%emt 0:01:55]} Ne3 {[%emt 0:00:31]} 18. Qe2 {[%emt 0:00:16]} Bxg2+ {[%emt 0:00:54]} 19. Kg1 {[%emt 0:00:18]} Bxf1 {[%emt 0:00:02]} 20. Qxe3 {[%emt 0:00:22]} Bxe5 {[%emt 0:00:13]} 21. Bxc8 {[%emt 0:00:07]} Bxf4 {[%emt 0:02:12]} 22. Qxf4 {[%emt 0:00:01]} Bd3 {[%emt 0:00:01]} 23. Bf5 {[%emt 0:00:12]} Bxf5 {[%emt 0:00:20]} 24. Qxf5 {[%emt 0:00:01]} Qa5 {[%emt 0:00:01]} 25. Qf4 {[%emt 0:00:18]} Re8 {[%emt 0:00:17]} 26. Nf3 {[%emt 0:00:22]} Ne4 {[%emt 0:00:33]} 27. h4 {[%emt 0:00:45]} f6 {[%emt 0:00:00]} 28. Kh2 {[%emt 0:00:01]} Rc8 {[%emt 0:00:00]} 29. Rg1 {[%emt 0:00:13]} Rc2+ {[%emt 0:00:00]} 30. Rg2 {[%emt 0:00:06]} Rxg2+ {[%emt 0:00:02]} 31. Kxg2 {[%emt 0:00:01]} Qxa2 {[%emt 0:00:04]} 32. Qc1 {[%emt 0:00:24]} h6 {[%emt 0:00:06]} 33. Qc2 {[%emt 0:00:14]} Kf7 {[%emt 0:00:04]} 34. h5 {[%emt 0:00:02]} Kg8 {[%emt 0:00:01]} 35. Nh4 {[%emt 0:00:01]} Kh7 {[%emt 0:00:03]} 36. Ng6 {[%emt 0:00:06]} f5 {[%emt 0:00:03]} 37. Ne7 {[%emt 0:00:15]} f4 {[%emt 0:00:04]} 38. Nxd5 {[%emt 0:00:04]} Kg8 {[%emt 0:00:01]} 39. Qc8+ {[%emt 0:00:10]} Kf7 40. Qf5+ {[%emt 0:00:02]} Nf6 {[%emt 0:00:02]} 41. Qg6+ {[%emt 0:00:12]} Ke6 {[%emt 0:00:02]} 42. Nxf4+ {[%emt 0:00:02]} Kd6 {[%emt 0:00:01]} 43. Qc2 {[%emt 0:00:04]} b6 {[%emt 0:00:02]} 44. Kf3 {[%emt 0:00:03]} Qa5 {[%emt 0:00:04]} 45. d5 {[%emt 0:00:09]} Qb5 {[%emt 0:00:04]} 46. Ba3+ {[%emt 0:00:06]} Kd7 {[%emt 0:00:02]} 47. Qc4 {[%emt 0:00:21]} Qxc4 {[%emt 0:00:09]} 48. bxc4 {[%emt 0:00:02]} b5 {[%emt 0:00:01]} 49. cxb5 {[%emt 0:00:07]} axb5 {[%emt 0:00:01]} 50. Bb2 {[%emt 0:00:12]} Kd6 {[%emt 0:00:02]} 51. Bxf6 {[%emt 0:00:08]} gxf6 {[%emt 0:00:01]} 52. Ke3 {[%emt 0:00:01]} Ke5 {[%emt 0:00:07]} 53. Kd3 {[%emt 0:00:02]} f5 {[%emt 0:00:02]} 54. Kc3 {[%emt 0:00:20]} Kxf4 {[%emt 0:00:07]} 55. d6 {[%emt 0:00:02]} Kg3 {[%emt 0:00:00]} 56. d7 {[%emt 0:00:01]} f4 {[%emt 0:00:01]} 57. d8=Q {[%emt 0:00:02]} f3 {[%emt 0:00:01]} 58. Kd2 {[%emt 0:00:11]} Kf2 {[%emt 0:00:03]} 59. Qh4+ {[%emt 0:00:04]} Kg2 {[%emt 0:00:02]} 60. Ke3 {[%emt 0:00:02]} b4 {[%emt 0:00:02]} 61. Qf2+ {[%emt 0:00:02]} Kh3 {[%emt 0:00:21]} 62. Kxf3 {[%emt 0:00:03]} 1-0

[Event "Polish University-ch Open 2024"]
[Site "Lublin"]
[Date "2024.02.23"]
[Round "4.9"]
[White "Skurniak, Szymon"]
[Black "Nowak, Mikolaj"]
[Result "1-0"]
[ECO "B20"]
[WhiteElo "2096"]
[BlackElo "2317"]
[Annotator "TA"]
[PlyCount "49"]
[EventDate "2024.02.22"]
[EventType "swiss"]
[EventCountry "POL"]
[SourceTitle "playchess.com"]
[Source "ChessBase"]
[SourceQuality "1"]
[TimeControl "600+3"]

{[%evp 9,49,3,22,0,63,33,51,16,19,9,25,17,24,-6,0,14,0,0,0,0,31,19,96,72,46,13,61,56,150,140,152,148,154,154,145,146,159,120,1069,1066,12846,10627]} 1. e4 {[%emt 0:00:03]} c5 {[%emt 0:00:04]} 2. b3 {[%emt 0:00:12]} Nc6 {[%emt 0:00:15]} 3. Bb2 {[%emt 0:00:01]} e6 {[%emt 0:00:22]} 4. Bb5 {[%emt 0:00:03]} Nge7 {[%emt 0:00:24]} 5. Nf3 {[%emt 0:00:02]} a6 {[%emt 0:00:15]} 6. Bxc6 {[%emt 0:00:12]} bxc6 {[%emt 0:00:19]} ({Black should try} 6... Nxc6 $11 7. O-O b5) 7. h4 {[%emt 0:01:34]} d6 {[%emt 0:00:24]} 8. d4 {[%emt 0:00:50] White is slightly better.} cxd4 {[%emt 0:00:23]} 9. Qxd4 {[%emt 0:00:10]} e5 {[%emt 0:00:33]} 10. Qd2 {[%emt 0:00:34]} Ng6 {[%emt 0:00:30][%cal Be7g6,Bg6f4,Bf4e6,Be6d4][%mdl 32]} 11. h5 {[%emt 0:00:19]} Nf4 {[%emt 0:00:18]} 12. g3 {[%emt 0:00:02]} Ne6 {[%emt 0:00:11]} 13. h6 {[%emt 0:00:22]} g6 {[%emt 0:00:23]} 14. Na3 $36 {[%emt 0:00:03][%mdl 2048] Black is under pressure.} c5 {[%emt 0:01:09]} 15. Nc4 {[%emt 0:00:21]} Bb7 {[%emt 0:00:40]} (15... Be7 $11) 16. Qd3 {[%emt 0:01:41] White is much more active.} Nd4 {[%emt 0:00:57]} 17. O-O-O {[%emt 0:00:17][%cal Rf3d4]} Be7 {[%emt 0:00:24]} (17... f5 $11 18. Ncd2 Qd7) 18. Nxd4 {[%emt 0:00:03]} exd4 {[%emt 0:01:32]} (18... cxd4 $14 19. Rhe1 O-O) 19. c3 $16 {[%emt 0:00:11][%cal Bc2c3,Bc3d4,Bd4c5][%mdl 32]} d5 {[%emt 0:00:53]} 20. exd5 {[%emt 0:00:05]} Bxd5 {[%emt 0:00:05]} 21. Rhe1 {[%emt 0:00:10]} O-O {[%emt 0:00:13]} 22. cxd4 {[%emt 0:00:02]} Bg5+ {[%emt 0:00:32]} 23. f4 {[%emt 0:00:06]} Bxh6 $2 {[%emt 0:00:02][%mdl 8192] [#]} (23... Bxc4 $16 24. bxc4 (24. Qxc4 cxd4 25. Rxd4 Qb6 $18) 24... Bxh6) 24. dxc5 $18 {[%emt 0:00:01]} Bxc4 {[%emt 0:00:12]} 25. Qc3 {[%emt 0:00:06] Weighted Error Value: White=0.15 (very precise) /Black=0.25 (precise) .  Loses game:     	---       	Black=1      Mistake:       	---       	Black=4      Inaccurate:     	White=4     	Black=2      OK:         	White=6     	Black=7      Best:        	White=1     	Black=1} 1-0

[Event "Polish University-ch Open 2024"]
[Site "Lublin"]
[Date "2024.02.23"]
[Round "4.10"]
[White "Jedrusik, Adam"]
[Black "Koziorowicz, Michal"]
[Result "0-1"]
[ECO "E47"]
[WhiteElo "2025"]
[BlackElo "2324"]
[Annotator "TA"]
[PlyCount "48"]
[EventDate "2024.02.22"]
[EventType "swiss"]
[EventCountry "POL"]
[SourceTitle "playchess.com"]
[Source "ChessBase"]
[SourceQuality "1"]
[TimeControl "600+3"]

{[%evp 9,48,8,16,6,55,19,44,47,42,52,73,66,82,56,97,68,98,80,104,113,118,123,131,93,115,27,42,-17,-1,-11,-9,-276,-270,-264,-258,-556,-558,-562,-547,-537,-538]} 1. d4 {[%emt 0:00:01]} e6 {[%emt 0:00:01]} 2. c4 {[%emt 0:00:04]} Nf6 {[%emt 0:00:01]} 3. Nc3 {[%emt 0:00:05]} Bb4 {[%emt 0:00:02]} 4. e3 {[%emt 0:00:03][%cal Be2e3,Be3e4][%mdl 32]} O-O {[%emt 0:00:02]} 5. Bd3 {[%emt 0:00:02]} Re8 {[%emt 0:00:02]} 6. Nge2 {[%emt 0:00:09]} b6 {[%emt 0:00:02]} (6... d5 $11) 7. a3 {[%emt 0:00:04]} Bf8 {[%emt 0:00:01]} 8. e4 {[%emt 0:00:39] [#] e5 wäre nun fies. Weiß steht etwas besser.} d6 {[%emt 0:00:01]} 9. O-O {[%emt 0:00:12]} e5 {[%emt 0:00:02]} 10. d5 {[%emt 0:00:32]} a5 {[%emt 0:00:02]} 11. f3 {[%emt 0:00:33]} g6 {[%emt 0:00:11]} 12. Bg5 {[%emt 0:00:22]} h6 {[%emt 0:00:04]} 13. Be3 {[%emt 0:00:02]} Bg7 {[%emt 0:00:04]} 14. Qd2 {[%emt 0:00:18]} Kh7 {[%emt 0:00:02]} 15. b4 {[%emt 0:00:02]} Nbd7 {[%emt 0:00:05]} 16. Nb5 {[%emt 0:01:00]} Ba6 {[%emt 0:00:36]} 17. c5 {[%emt 0:00:11]} ({Günstiger ist} 17. Nec3 $16) 17... bxc5 $11 {[%emt 0:00:11][%cal Of6d5]} 18. bxc5 {[%emt 0:00:05]} (18. bxa5 $14 Nb8 19. Bc4) 18... Nxc5 {[%emt 0:00:02]} 19. Bxc5 {[%emt 0:00:23]} dxc5 {[%emt 0:00:02]} 20. Qxa5 $2 {[%emt 0:00:44][%mdl 8192] [#] Davon erholt Weiß sich nicht mehr.} (20. Qc2 $11 {und Weiss steht sicher.}) 20... c6 $19 {[%emt 0:00:14]} 21. Qxd8 {[%emt 0:00:42]} Rexd8 {[%emt 0:00:06]} ({Jedoch nicht} 21... Raxd8 22. a4 $19) 22. Nc7 {[%emt 0:00:17]} (22. a4) 22... Bxd3 {[%emt 0:00:04] Schwarz steht klar auf Gewinn.} 23. Nxa8 {[%emt 0:00:01]} Rxa8 {[%emt 0:00:09]} 24. Nc3 {[%emt 0:00:04]} Bxf1 {[%emt 0:00:07] Gewichteter Fehlerwert: Weiß=0.65/Schwarz=0.18 (sehr präzise) .  Verlustzug:     	Weiß=1     	---        Fehler:       	Weiß=3     	Schwarz=1     Ungenau:       	Weiß=2     	Schwarz=2     OK:         	Weiß=6     	Schwarz=4     Bester:       	---       	Schwarz=2} 0-1